fUSD/lending_fUSD_20240222
["ID","MTS","AMOUNT","RATE_DAILY","PERIOD"]
[314912516,1708635084192,-500.0,0.00033424,4]
[314912517,1708635084202,-503.87,0.00033424,4]
[314912518,1708635084212,-1466.13,0.00033424,4]
[314912519,1708635084222,-770.69,0.00033424,4]
[314912520,1708635084232,-500.0,0.00033424,4]
[314912521,1708635084241,-1490.17,0.00033424,2]
[314912522,1708635084250,-507.34,0.00033424,4]
[314912523,1708635084260,-1118.23,0.00033424,4]
[314912524,1708635084270,-500.0,0.00033424,4]
[314912525,1708635084280,-157.0,0.00033436,2]
[314912526,1708635084290,-773.12,0.0003351,2]
[314912527,1708635084300,-700.8820342,0.00033511,6]
[314912528,1708635084310,-3893.708996,0.00033537,2]
[314912529,1708635084320,-355.462429,0.00033537,2]
[314912530,1708635084761,-3893.708996,0.00033537,2]
[314912531,1708635084790,-626.758522,0.00033537,2]
[314912532,1708635084801,-5090.418261,0.00033537,2]
[314912533,1708635084810,-3036.868378,0.00033537,2]
[314912534,1708635084821,-403.2,0.00033553,2]
[314912535,1708635084830,-1232.83217178,0.00033554,5]
[314912536,1708635084840,-152.75161866,0.0003356,2]
[314912537,1708635084850,-151.2945327,0.0003356,2]
[314912538,1708635084861,-500.0,0.00033561,4]
[314912539,1708635084872,-500.0,0.00033561,4]
[314912540,1708635084882,-500.0,0.00033561,4]
[314912541,1708635084894,-500.0,0.00033561,4]
[314912542,1708635084904,-500.0,0.00033561,4]
[314912543,1708635084915,-500.0,0.00033561,4]
[314912544,1708635084924,-500.0,0.00033561,4]
[314912545,1708635084935,-500.0,0.00033561,4]
[314912546,1708635084944,-500.0,0.00033561,4]
[314912547,1708635084954,-500.0,0.00033561,4]
[314912548,1708635084964,-500.0,0.00033561,4]
[314912549,1708635084974,-500.0,0.00033561,4]
[314912550,1708635084983,-500.0,0.00033561,4]
[314912551,1708635084992,-500.0,0.00033561,4]
[314912552,1708635085002,-500.0,0.00033561,4]
[314912553,1708635085011,-156.45980615,0.00033561,4]
[314912554,1708635085020,-500.0,0.00033561,4]
[314912555,1708635085029,-500.0,0.00033561,4]
[314912556,1708635085039,-500.0,0.00033561,4]
[314912557,1708635085048,-500.0,0.00033561,4]
[314912558,1708635085058,-500.0,0.00033561,4]
[314912560,1708635085068,-500.0,0.00033561,4]
[314912561,1708635085077,-500.0,0.00033561,4]
[314912562,1708635085087,-500.0,0.00033561,4]
[314912563,1708635085096,-415.70155139,0.00033561,4]
[314912564,1708635085106,-1069.76,0.00033561,4]
[314912565,1708635085115,-500.0,0.00033561,4]
[314912566,1708635085124,-500.0,0.00033561,4]
[314912567,1708635085134,-994.15,0.00033561,4]
[314912568,1708635085148,-500.0,0.00033561,4]
[314912569,1708635085159,-500.0,0.00033561,4]
[314912570,1708635085170,-734.37,0.00033561,4]
[314912571,1708635085179,-500.0,0.00033561,4]
[314912572,1708635085189,-500.0,0.00033561,4]
[314912573,1708635085198,-500.0,0.00033561,4]
[314912574,1708635085208,-500.0,0.00033561,4]
[314912575,1708635085217,-500.0,0.00033561,4]
[314912576,1708635085227,-500.0,0.00033561,4]
[314912577,1708635085236,-500.0,0.00033561,4]
[314912578,1708635085246,-500.0,0.00033561,4]
[314912579,1708635085256,-500.0,0.00033561,4]
[314912580,1708635085266,-500.0,0.00033561,4]
[314912581,1708635085275,-500.0,0.00033561,4]
[314912582,1708635085285,-500.0,0.00033561,4]
[314912583,1708635085294,-500.0,0.00033561,4]
[314912584,1708635085304,-500.0,0.00033561,4]
[314912585,1708635085315,-500.0,0.00033561,4]
[314912586,1708635085325,-500.0,0.00033561,4]
[314912587,1708635085335,-500.0,0.00033561,4]
[314912588,1708635085344,-500.0,0.00033561,4]
[314912589,1708635085354,-500.0,0.00033561,4]
[314912590,1708635085364,-500.0,0.00033561,4]
[314912591,1708635085375,-500.0,0.00033561,4]
[314912592,1708635085385,-753.95,0.00033561,4]
[314912593,1708635085395,-500.0,0.00033561,4]
[314912594,1708635085405,-500.0,0.00033561,4]
[314912595,1708635085416,-647.54492657,0.00033561,4]
[314912596,1708635085426,-500.0,0.00033561,4]
[314912597,1708635085435,-720.02,0.00033561,4]
[314912598,1708635085444,-1000.0,0.00033561,7]
[314912599,1708635085454,-500.0,0.00033561,4]
[314912600,1708635085464,-500.0,0.00033561,4]
[314912601,1708635085474,-500.0,0.00033561,4]
[314912602,1708635085484,-500.0,0.00033561,4]
[314912603,1708635085494,-630.9,0.00033561,4]
[314912604,1708635085504,-565.85,0.00033561,4]
[314912605,1708635085514,-500.0,0.00033561,4]
[314912606,1708635085523,-500.0,0.00033561,4]
[314912607,1708635085533,-514.85,0.00033561,4]
[314912608,1708635085544,-748.94,0.00033561,4]
[314912609,1708635085553,-500.0,0.00033561,4]
[314912610,1708635085563,-217.61877655,0.00033561,4]
[314912611,1708635085573,-500.0,0.00033561,4]
[314912612,1708635085584,-500.0,0.00033561,4]
[314912613,1708635085594,-500.0,0.00033561,4]
[314912614,1708635085605,-500.0,0.00033561,4]
[314912615,1708635085615,-500.0,0.00033561,4]
[314912616,1708635085625,-500.0,0.00033561,4]
[314912617,1708635085635,-500.0,0.00033561,4]
[314912618,1708635085646,-318.50734979,0.00033561,2]
[314912619,1708635085656,-500.0,0.00033561,4]
[314912620,1708635085667,-500.0,0.00033561,4]
[314912621,1708635085678,-840.01,0.00033561,4]
[314912622,1708635085688,-500.0,0.00033561,4]
[314912623,1708635085697,-500.0,0.00033561,4]
[314912624,1708635085707,-500.0,0.00033561,4]
[314912625,1708635085716,-500.0,0.00033561,4]
[314912626,1708635085726,-612.93,0.00033561,4]
[314912627,1708635085736,-500.0,0.00033561,4]
[314912628,1708635085746,-500.0,0.00033561,4]
[314912629,1708635085757,-818.33,0.00033561,4]
[314912630,1708635085772,-500.0,0.00033561,4]
[314912631,1708635085781,-585.54,0.00033561,4]
[314912632,1708635085791,-500.0,0.00033561,4]
[314912633,1708635085802,-500.0,0.00033561,4]
[314912634,1708635085812,-773.87,0.00033561,4]
[314912635,1708635085822,-712.63,0.00033561,4]
[314912636,1708635085833,-500.0,0.00033561,4]
[314912637,1708635085844,-538.82,0.00033561,4]
[314912638,1708635085855,-518.63,0.00033561,4]
[314912639,1708635085866,-500.0,0.00033561,4]
[314912640,1708635085876,-500.0,0.00033561,4]
[314912641,1708635085887,-749.66,0.00033561,4]
[314912642,1708635085897,-209.54416312,0.00033561,4]
[314912643,1708635085956,-290.45583688,0.00033561,4]
[314912644,1708635085967,-500.0,0.00033561,4]
[314912645,1708635085977,-500.0,0.00033561,4]
[314912646,1708635085987,-500.0,0.00033561,4]
[314912647,1708635085998,-500.0,0.00033561,4]
[314912648,1708635086007,-543.92,0.00033561,4]
[314912649,1708635086017,-500.0,0.00033561,4]
[314912650,1708635086027,-72.49349829,0.00033561,4]
[314912651,1708635086040,-427.50650171,0.00033561,4]
[314912652,1708635086051,-500.0,0.00033561,4]
[314912653,1708635086061,-500.0,0.00033561,4]
[314912654,1708635086071,-500.0,0.00033561,4]
[314912655,1708635086081,-500.0,0.00033561,4]
[314912656,1708635086091,-500.0,0.00033561,4]
[314912657,1708635086101,-500.0,0.00033561,4]
[314912658,1708635086111,-500.0,0.00033561,4]
[314912659,1708635086120,-500.0,0.00033561,4]
[314912660,1708635086130,-500.0,0.00033561,4]
[314912661,1708635086139,-542.35,0.00033561,4]
[314912662,1708635086149,-500.0,0.00033561,4]
[314912663,1708635086158,-500.0,0.00033561,4]
[314912664,1708635086172,-602.91,0.00033561,4]
[314912665,1708635086182,-500.0,0.00033561,4]
[314912666,1708635086191,-500.0,0.00033561,4]
[314912667,1708635086201,-540.84,0.00033561,4]
[314912668,1708635086211,-500.0,0.00033561,4]
[314912669,1708635086221,-500.0,0.00033561,4]
[314912670,1708635086231,-500.0,0.00033561,4]
[314912671,1708635086241,-500.0,0.00033561,4]
[314912672,1708635086250,-500.0,0.00033561,4]
[314912673,1708635086260,-500.0,0.00033561,4]
[314912674,1708635086269,-500.0,0.00033561,4]
[314912675,1708635086278,-713.25,0.00033561,4]
[314912676,1708635086288,-500.0,0.00033561,4]
[314912677,1708635086297,-500.0,0.00033561,4]
[314912678,1708635086306,-500.0,0.00033561,4]
[314912679,1708635086315,-500.0,0.00033561,4]
[314912680,1708635086325,-500.0,0.00033561,4]
[314912681,1708635086334,-500.0,0.00033561,4]
[314912682,1708635086344,-500.0,0.00033561,4]
[314912683,1708635086354,-500.0,0.00033561,4]
[314912684,1708635086363,-1836.57,0.00033561,4]
[314912685,1708635086373,-573.67,0.00033561,4]
[314912686,1708635086383,-532.04,0.00033561,4]
[314912687,1708635086392,-606.69,0.00033561,4]
[314912688,1708635086401,-500.0,0.00033561,4]
[314912689,1708635086413,-186.9285856,0.00033561,4]
[314912690,1708635086423,-540.07,0.00033561,4]
[314912691,1708635086433,-500.0,0.00033561,4]
[314912692,1708635086443,-500.0,0.00033561,4]
[314912693,1708635086454,-569.6882853,0.00033561,4]
[314912694,1708635086464,-500.0,0.00033561,4]
[314912695,1708635086475,-500.0,0.00033561,4]
[314912696,1708635086485,-715.77,0.00033561,4]
[314912697,1708635086495,-500.0,0.00033561,4]
[314912698,1708635086505,-500.0,0.00033561,4]
[314912699,1708635086514,-500.0,0.00033561,4]
[314912700,1708635086524,-584.35861233,0.00033561,4]
[314912701,1708635086534,-500.0,0.00033561,4]
[314912702,1708635086546,-500.0,0.00033561,4]
[314912703,1708635086556,-156.22,0.00033561,4]
[314912704,1708635086566,-500.0,0.00033561,4]
[314912705,1708635086576,-500.0,0.00033561,4]
[314912706,1708635086587,-500.0,0.00033561,4]
[314912707,1708635086597,-427.30122523,0.00033561,4]
[314912708,1708635086607,-519.14,0.00033561,4]
[314912709,1708635086617,-500.0,0.00033561,4]
[314912710,1708635086627,-500.0,0.00033561,4]
[314912711,1708635086638,-500.0,0.00033561,4]
[314912712,1708635086648,-503.74,0.00033561,4]
[314912713,1708635086657,-500.0,0.00033561,4]
[314912714,1708635086670,-500.0,0.00033561,4]
[314912715,1708635086680,-500.0,0.00033561,4]
[314912716,1708635086690,-500.0,0.00033561,4]
[314912717,1708635086699,-542.16,0.00033561,4]
[314912718,1708635086710,-858.44,0.00033561,4]
[314912719,1708635086720,-500.0,0.00033561,4]
[314912720,1708635086730,-440.19883572,0.00033561,4]
[314912721,1708635086741,-621.97,0.00033561,4]
[314912722,1708635086753,-500.0,0.00033561,4]
[314912723,1708635086767,-500.0,0.00033561,4]
[314912724,1708635086777,-500.0,0.00033561,4]
[314912725,1708635086788,-500.0,0.00033561,4]
[314912726,1708635086798,-627.87,0.00033561,4]
[314912727,1708635086809,-600.73,0.00033561,4]
[314912728,1708635086820,-500.0,0.00033561,4]
[314912729,1708635086830,-500.0,0.00033561,4]
[314912730,1708635086842,-2002.64,0.00033561,4]
[314912731,1708635086853,-2266.41,0.00033561,4]
[314912732,1708635086863,-500.0,0.00033561,4]
[314912733,1708635086874,-500.0,0.00033561,4]
[314912734,1708635086884,-500.0,0.00033561,4]
[314912735,1708635086894,-500.0,0.00033561,4]
[314912736,1708635086904,-500.0,0.00033561,4]
[314912737,1708635086915,-500.0,0.00033561,4]
[314912738,1708635086925,-500.0,0.00033561,4]
[314912739,1708635086935,-947.29,0.00033561,4]
[314912740,1708635086945,-500.0,0.00033561,4]
[314912741,1708635086956,-1981.38,0.00033561,4]
[314912742,1708635086966,-500.0,0.00033561,4]
[314912743,1708635086977,-500.0,0.00033561,4]
[314912744,1708635086987,-500.0,0.00033561,4]
[314912745,1708635086998,-500.0,0.00033561,4]
[314912746,1708635087008,-500.0,0.00033561,4]
[314912747,1708635087018,-500.0,0.00033561,4]
[314912748,1708635087028,-500.0,0.00033561,4]
[314912749,1708635087037,-500.0,0.00033561,4]
[314912750,1708635087047,-4201.14,0.00033561,4]
[314912751,1708635087057,-6347.11,0.00033561,4]
[314912752,1708635087067,-500.0,0.00033561,4]
[314912753,1708635087078,-500.0,0.00033561,4]
[314912754,1708635087087,-500.0,0.00033561,4]
[314912755,1708635087098,-711.96,0.00033561,4]
[314912756,1708635087109,-510.45,0.00033561,4]
[314912757,1708635087119,-611.83,0.00033561,4]
[314912758,1708635087129,-500.0,0.00033561,4]
[314912759,1708635087138,-500.0,0.00033561,4]
[314912760,1708635087146,-500.0,0.00033561,4]
[314912761,1708635087154,-500.0,0.00033561,4]
[314912762,1708635087249,-500.0,0.00033561,4]
[314912763,1708635087259,-4462.31,0.00033561,4]
[314912764,1708635087268,-3872.09,0.00033561,4]
[314912765,1708635087278,-500.0,0.00033561,4]
[314912766,1708635087287,-500.0,0.00033561,4]
[314912767,1708635087297,-500.0,0.00033561,4]
[314912768,1708635087306,-500.0,0.00033561,4]
[314912769,1708635087315,-500.0,0.00033561,4]
[314912770,1708635087325,-500.0,0.00033561,4]
[314912771,1708635087334,-2138.94,0.00033561,4]
[314912772,1708635087344,-500.0,0.00033561,4]
[314912773,1708635087353,-677.28,0.00033561,4]
[314912774,1708635087362,-500.0,0.00033561,4]
[314912775,1708635087372,-500.0,0.00033561,4]
[314912776,1708635087382,-500.0,0.00033561,4]
[314912777,1708635087391,-500.0,0.00033561,4]
[314912778,1708635087401,-500.0,0.00033561,4]
[314912779,1708635087410,-981.71,0.00033561,4]
[314912780,1708635087422,-500.0,0.00033561,4]
[314912781,1708635087431,-4200.89,0.00033561,4]
[314912782,1708635087439,-511.16,0.00033561,4]
[314912783,1708635087451,-500.0,0.00033561,4]
[314912784,1708635087460,-500.0,0.00033561,4]
[314912785,1708635087469,-500.0,0.00033561,4]
[314912786,1708635087478,-3628.37,0.00033561,4]
[314912787,1708635087487,-540.9,0.00033561,4]
[314912788,1708635087497,-500.0,0.00033561,4]
[314912789,1708635087507,-500.0,0.00033561,4]
[314912790,1708635087517,-541.66,0.00033561,4]
[314912791,1708635087526,-500.0,0.00033561,4]
[314912792,1708635087534,-500.0,0.00033561,4]
[314912793,1708635087544,-500.0,0.00033561,4]
[314912794,1708635087553,-767.41,0.00033561,4]
[314912795,1708635087563,-14204.65795411,0.00033561,4]
[314912796,1708635093883,53664.78006303,0.00023,2]
[314912797,1708635093953,208.46357501,0.0002509,2]
[314912805,1708635165095,716.93,0.00028789,2]
[314912806,1708635175567,2009.89893017,0.000263,2]
[314912807,1708635180978,149897.33020761,0.000279,2]
[314912808,1708635233330,28694.36977515,0.00023,2]
[314912810,1708635270759,199.0,0.000271,5]
[314912811,1708635394804,347.7279917,0.00027899,15]
[314912812,1708635457701,184.52,0.00028741,120]
[314912813,1708635487107,750.0,0.00025,3]
[314912814,1708635561218,299.99,0.00027662,12]
[314912815,1708635608775,500.0,0.000274,7]
[314912816,1708635624974,851.05,0.00024952,2]
[314912817,1708635654048,-174.75,0.00026791,2]
[314912818,1708635654070,-1048.98985445,0.00026898,2]
[314912819,1708635654094,-322.45606182,0.00026899,2]
[314912820,1708635654117,-156.95733266,0.000269,2]
[314912821,1708635654141,-177.69,0.000269,2]
[314912822,1708635654166,-150.0,0.00026999,2]
[314912823,1708635654188,-300.0,0.00026999,2]
[314912824,1708635654212,-283.15675107,0.00027,2]
[314912825,1708635691583,-322.45606182,0.0002679,2]
[314912826,1708635691612,-250.0,0.00026812,2]
[314912827,1708635691644,-11181.83,0.00026854,2]
[314912828,1708635691673,-12672.11098043,0.00027,2]
[314912829,1708635691703,-800.0,0.00027,3]
[314912830,1708635693327,2284.44,0.0002677,2]
[314912831,1708635759870,2489.16295775,0.00026657,2]
[314912833,1708635997686,299.99,0.0002663,12]
[314912834,1708636074663,808.49,0.00024574,2]
[314912841,1708636173146,-250.0,0.00026396,2]
[314912842,1708636173165,-1048.98985445,0.00026397,2]
[314912843,1708636173187,-973.8,0.00026398,2]
[314912844,1708636173207,-150.0,0.00026412,2]
[314912845,1708636173226,-65.54134999,0.00026412,2]
[314912858,1708636231742,-234.45865001,0.00026412,2]
[314912859,1708636231752,-250.0,0.00026413,2]
[314912860,1708636231762,-839.77515999,0.00026413,2]
[314912861,1708636231930,-23060.22484001,0.00026413,2]
[314912862,1708636231940,-200.0,0.0002642,2]
[314912863,1708636231949,-500.0,0.0002642,2]
[314912864,1708636231958,-500.0,0.00026429,2]
[314912865,1708636231968,-200.0,0.00026429,2]
[314912866,1708636231978,-1197.57,0.00026464,2]
[314912867,1708636231988,-322.45606182,0.00026472,2]
[314912868,1708636231998,-500.0,0.00026474,2]
[314912869,1708636232009,-150.99,0.00026474,2]
[314912870,1708636232019,-1011.33,0.00026492,2]
[314912871,1708636232029,-1337.24,0.00026527,2]
[314912872,1708636232039,-155.02,0.00026532,2]
[314912873,1708636232050,-200.0,0.00026553,2]
[314912874,1708636232060,-702.14,0.00026553,2]
[314912875,1708636232070,-2395.29,0.00026553,2]
[314912876,1708636232080,-1193.07,0.00026576,2]
[314912877,1708636232089,-172.71,0.00026604,2]
[314912878,1708636232099,-155.02,0.00026614,2]
[314912879,1708636232109,-150.0,0.0002663,2]
[314912880,1708636232121,-163.61,0.0002663,2]
[314912882,1708636232133,-354.22,0.0002663,2]
[314912884,1708636232143,-2000.0,0.00026649,2]
[314912886,1708636232152,-7145.29704225,0.00026657,2]
[314912887,1708636232163,-155.02,0.00026695,2]
[314912888,1708636232172,-15645.02,0.00026721,2]
[314912889,1708636232182,-2031.3,0.0002677,2]
[314912891,1708636232191,-155.02,0.00026776,2]
[314912892,1708636232202,-170.3,0.00026812,2]
[314912894,1708636232211,-808.49,0.00026838,2]
[314912895,1708636232220,-155.02,0.00026858,2]
[314912896,1708636232229,-155.02,0.00026939,2]
[314912897,1708636232239,-150.0,0.00027003,2]
[314912898,1708636232248,-155.02,0.0002702,2]
[314912899,1708636232257,-156.95733253,0.00027052,2]
[314912900,1708636232267,-155.02,0.00027102,2]
[314912901,1708636232277,-2441.16,0.00027141,2]
[314912902,1708636232286,-155.02,0.00027183,2]
[314912903,1708636232296,-156.95733253,0.00027205,2]
[314912904,1708636232305,-757.43175713,0.00027216,2]
[314912905,1708636232314,-155.02,0.00027264,2]
[314912906,1708636232322,-155.02,0.00027346,2]
[314912907,1708636232332,-156.95733253,0.00027357,2]
[314912908,1708636232341,-155.0,0.00027397,2]
[314912909,1708636232351,-369.5,0.00027397,2]
[314912910,1708636232360,-155.02,0.00027427,2]
[314912911,1708636232375,-1621.377,0.00027442,2]
[314912912,1708636232385,-177.69,0.00027448,2]
[314912913,1708636232394,-155.02,0.00027508,2]
[314912914,1708636232403,-156.95733253,0.0002751,2]
[314912915,1708636232413,-369.5,0.00027556,2]
[314912916,1708636232423,-155.02,0.0002759,2]
[314912917,1708636232433,-308.39156333,0.00027619,2]
[314912918,1708636232443,-1678.8973062,0.00027661,2]
[314912919,1708636232453,-156.95733253,0.00027662,2]
[314912920,1708636232463,-155.02,0.00027671,2]
[314912921,1708636232473,-369.5,0.00027714,2]
[314912922,1708636232482,-1310.01625762,0.00027733,2]
[314912923,1708636232491,-155.02,0.00027752,2]
[314912924,1708636232501,-1310.01625762,0.00027774,2]
[314912925,1708636232510,-156.95733253,0.00027815,2]
[314912926,1708636232520,-281.84901684,0.00027815,2]
[314912927,1708636232530,-533.92761426,0.00027815,2]
[314912928,1708636232539,-1310.01625762,0.00027815,2]
[314912929,1708636232549,-22183.2,0.00027822,2]
[314912930,1708636232559,-2121.75525056,0.00027832,2]
[314912931,1708636232568,-155.02,0.00027833,2]
[314912932,1708636232577,-241.92,0.00027855,2]
[314912933,1708636232586,-177.26,0.00027855,2]
[314912934,1708636232595,-281.84901682,0.00027856,2]
[314912935,1708636232606,-369.5,0.00027872,2]
[314912936,1708636232616,-175.54438993,0.0002789,2]
[314912937,1708636232626,-281.84901682,0.00027896,2]
[314912938,1708636232634,-151.022305,0.00027898,2]
[314912939,1708636232644,-151.022305,0.00027898,2]
[314912940,1708636232654,-151.022305,0.00027898,2]
[314912941,1708636232663,-151.022305,0.00027898,2]
[314912942,1708636232673,-151.022305,0.00027898,2]
[314912943,1708636232682,-151.022305,0.00027898,2]
[314912944,1708636232692,-151.022305,0.00027898,2]
[314912945,1708636232701,-151.022305,0.00027898,2]
[314912946,1708636232711,-151.022305,0.00027898,2]
[314912947,1708636232720,-151.022305,0.00027898,2]
[314912948,1708636232730,-151.022305,0.00027898,2]
[314912949,1708636232740,-794.51605435,0.00027898,2]
[314912950,1708636232749,-359.08658392,0.00027898,2]
[314912951,1708636232758,-281.69798841,0.00027899,2]
[314912952,1708636232767,-177.82510234,0.00027899,2]
[314912953,1708636232777,-1047211.59493161,0.000279,2]
[314912954,1708636232786,-155.02,0.00027915,2]
[314912955,1708636232795,-172.71,0.00027934,2]
[314912956,1708636232805,-156.95733253,0.00027967,2]
[314912957,1708636232818,-86530.46535388,0.0002799,2]
[314912958,1708636232828,-177.69,0.00027996,2]
[314912959,1708636232838,-369.5,0.0002803,2]
[314912960,1708636232847,-151.87,0.00028034,2]
[314912961,1708636232857,-156.95733253,0.00028119,2]
[314912962,1708636232868,-369.5,0.00028189,2]
[314912963,1708636232878,-156.95733253,0.00028272,2]
[314912964,1708636232887,-369.5,0.00028347,2]
[314912965,1708636232897,-2031.3,0.00028414,2]
[314912966,1708636232906,-2121.75525055,0.00028414,2]
[314912967,1708636232916,-156.95733253,0.00028424,2]
[314912968,1708636232925,-369.5,0.00028505,2]
[314912969,1708636232935,-177.69,0.00028544,2]
[314912970,1708636232944,-183.0,0.00028571,2]
[314912971,1708636232953,-156.95733253,0.00028577,2]
[314912972,1708636232962,-369.5,0.00028664,2]
[314912973,1708636232972,-156.95733253,0.00028729,2]
[314912974,1708636232982,-1278.54,0.00028741,2]
[314912975,1708636232991,-155.0,0.00028767,2]
[314912976,1708636233001,-1664.87,0.00028785,2]
[314912977,1708636233010,-499.99,0.00028785,2]
[314912978,1708636233020,-369.5,0.00028822,2]
[314912979,1708636233029,-242.04478419,0.0002888,2]
[314912980,1708636233039,-150.0,0.0002888,2]
[314912981,1708636233051,-156.95733253,0.00028881,2]
[314912982,1708636233060,-1278.54,0.00028892,2]
[314912983,1708636233069,-2121.75525055,0.00028997,2]
[314912984,1708636233079,-850.0,0.00029,3]
[314912985,1708636233088,-156.95733253,0.00029034,2]
[314912986,1708636233098,-1278.54,0.00029044,2]
[314912987,1708636233109,-210.0,0.00029053,2]
[314912988,1708636233123,-323.32,0.00029075,2]
[314912989,1708636233133,-800.0,0.00029096,2]
[314912990,1708636233144,-808.49,0.00029102,2]
[314912991,1708636233153,-170.12,0.00029123,2]
[314912992,1708636233164,-165.63,0.00029169,2]
[314912993,1708636233174,-156.95733253,0.00029186,2]
[314912994,1708636233184,-1278.54,0.00029195,2]
[314912995,1708636233193,-383.38,0.0002924,2]
[314912996,1708636233205,-172.71,0.00029264,2]
[314912997,1708636233215,-156.95733253,0.00029339,2]
[314912998,1708636233224,-1278.54,0.00029346,2]
[314912999,1708636233234,-151.87,0.00029404,2]
[314913000,1708636233243,-150.0,0.00029428,2]
[314913001,1708636233252,-156.95733253,0.00029491,2]
[314913002,1708636233262,-1278.54,0.00029497,2]
[314913003,1708636233271,-2121.75525055,0.00029579,2]
[314913004,1708636233281,-156.95733253,0.00029644,2]
[314913005,1708636233292,-1278.54,0.00029649,2]
[314913006,1708636233302,-311.05,0.0002969,2]
[314913007,1708636233315,-85579.49250321,0.0002972,2]
[314913008,1708636233326,-156.95733253,0.00029796,2]
[314913009,1708636233337,-151.022305,0.00029798,2]
[314913010,1708636233347,-151.022305,0.00029798,2]
[314913011,1708636233359,-151.022305,0.00029798,2]
[314913012,1708636233370,-151.022305,0.00029798,2]
[314913013,1708636233381,-151.022305,0.00029798,2]
[314913014,1708636233393,-151.022305,0.00029798,2]
[314913015,1708636233404,-151.022305,0.00029798,2]
[314913016,1708636233414,-151.022305,0.00029798,2]
[314913017,1708636233424,-151.022305,0.00029798,2]
[314913018,1708636233434,-151.022305,0.00029798,2]
[314913019,1708636233670,-1278.54,0.000298,2]
[314913020,1708636233679,-287.0,0.000298,2]
[314913021,1708636233688,-3124.11069797,0.00029851,2]
[314913022,1708636233697,-447.82952828,0.00029851,2]
[314913023,1708636233706,-492.48296371,0.00029851,2]
[314913024,1708636233715,-1583.57706091,0.00029851,2]
[314913025,1708636233724,-179.70418287,0.00029851,2]
[314913026,1708636233733,-846603.76764051,0.0002988,2]
[314913027,1708636233747,-125343.08759383,0.0002988,2]
[314913028,1708636233759,-80333.0,0.0002988,2]
[314913029,1708636233770,-141793.51011368,0.0002988,2]
[314913030,1708636233803,-719.0247636,0.0002988,2]
[314913031,1708636233815,-1540.90309334,0.0002988,2]
[314913032,1708636233827,-843.59743231,0.0002988,2]
[314913033,1708636233838,-302.6809345,0.0002988,2]
[314913038,1708636238173,-206.0,0.00029807,2]
[314913039,1708636238182,-151.56057371,0.00029851,2]
[314913040,1708636238194,-205354.32300324,0.0002988,2]
[314913048,1708636241128,-30128.92940497,0.0002988,2]
[314913057,1708636243233,-784.3051304,0.0002988,2]
[314913058,1708636243289,-27874.09532033,0.0002988,2]
[314913059,1708636243299,-1278.54,0.00029951,2]
[314913060,1708636243309,-5049.23843104,0.0002996,2]
[314913061,1708636243319,-242.15861588,0.00029976,2]
[314913062,1708636243328,-1558.66041576,0.0003,4]
[314913063,1708636243337,-312.78337604,0.0003,4]
[314913064,1708636243348,-7712.91087102,0.0003,4]
[314913065,1708636243357,-1000.0,0.0003,2]
[314913066,1708636243367,-170.0,0.0003,2]
[314913067,1708636243377,-2031.3,0.00030057,2]